[Event "82nd Italian Championship 2023"]
[Site "Brescia"]
[Date "2023.12.04"]
[Round "6.3"]
[White "Moroni, Luca Jr"]
[Black "Lumachi, Gabriele"]
[Result "1-0"]
[ECO "A50"]
[WhiteElo "2575"]
[BlackElo "2395"]
[Annotator "TA"]
[PlyCount "103"]
[EventDate "2023.11.28"]
[EventType "tourn"]
[EventCountry "ITA"]
[SourceTitle "playchess.com"]
[Source "ChessBase"]
[SourceQuality "1"]
[TimeControl "40/6000+30:20/3000+30:900+30"]

{[%evp 12,103,28,14,43,32,30,30,45,52,48,26,62,5,34,0,29,31,74,39,51,0,47,27,37,37,102,63,72,72,49,76,107,102,128,125,143,138,129,114,121,121,121,110,143,143,143,143,181,129,156,156,156,156,210,181,210,210,210,210,210,177,177,177,177,177,177,177,322,336,336,331,334,312,443,442,431,419,435,429,514,488,573,435,726,724,676,658,642,592,1515,1391,1752,1634]} 1. Nf3 {[%emt 0:00:05]} Nf6 {[%emt 0:00:59]} 2. g3 {[%emt 0:00:17]} b6 {[%emt 0:00:55]} 3. Bg2 {[%emt 0:00:20]} Bb7 {[%emt 0:00:06]} 4. c4 {[%emt 0:01:23]} g6 {[%emt 0:00:07]} 5. O-O {[%emt 0:00:59]} Bg7 {[%emt 0:00:07]} 6. d4 {[%emt 0:03:03]} O-O {[%emt 0:00:11]} 7. d5 {[%emt 0:01:11]} Na6 {[%emt 0:01:00] A50: Queen's Fianchetto Defence (1 d4 Nf6 2 c4 b6).} 8. Nc3 {[%emt 0:07:48]} Nc5 {[%emt 0:00:05]} 9. Nd4 {[%emt 0:02:49][%cal Bf3d4,Bd4b3,Bb3d2][%mdl 32]} e5 {[%emt 0:00:19] White has an edge.} 10. Nb3 {[%emt 0:00:41]} d6 {[%emt 0:00:49]} 11. e4 {[%emt 0:00:47]} Bc8 {[%emt 0:02:11]} 12. h3 {[%emt 0:13:35]} ({White should play} 12. Nxc5 $14 bxc5 13. b3 (13. Bg5 h6 $14)) 12... Ne8 {[%emt 0:09:18]} 13. Be3 {[%emt 0:10:56]} f5 {[%emt 0:15:08] [#]} 14. exf5 $146 {[%emt 0:06:56]} ({Predecessor:} 14. Qd2 Nf6 15. Nxc5 bxc5 16. Rae1 Nh5 17. Bg5 Bf6 18. Bh6 Bg7 19. Bg5 Qd7 20. exf5 gxf5 {0-1 Rustemov,A (2525)-Dubov,D (2720) Titled Tuesday intern op 22nd Feb Late blitz 2022 (2)}) 14... Bxf5 {[%emt 0:00:05]} 15. Nd2 {[%emt 0:09:18]} a5 {[%emt 0:11:37]} 16. b3 {[%emt 0:01:11]} (16. Nde4 $14) 16... Qc8 {[%emt 0:37:33]} (16... Qd7 $11) 17. Kh2 {[%emt 0:02:59]} h6 {[%emt 0:01:22]} 18. g4 {[%emt 0:06:50]} Bd7 {[%emt 0:05:08]} (18... Bd3 $14) 19. Nde4 {[%emt 0:00:11]} (19. Qc2 {keeps more tension.} Kh7 20. a3 Nf6 21. b4) 19... Nf6 {[%emt 0:01:12]} 20. Nxf6+ {[%emt 0:07:53]} Rxf6 {[%emt 0:00:09]} 21. Ne4 {[%emt 0:00:04]} Nxe4 {[%emt 0:03:12] Black is now going downhill.} 22. Bxe4 {[%emt 0:00:15]} Qf8 {[%emt 0:00:42]} 23. Kg2 {[%emt 0:04:19]} g5 {[%emt 0:08:20]} 24. f3 {[%emt 0:01:46]} Qe7 {[%emt 0:03:38] Black is weak on the light squares} 25. a3 {[%emt 0:05:30]} Rff8 {[%emt 0:00:36]} 26. Qd2 {[%emt 0:01:01]} Bf6 {[%emt 0:03:07]} 27. b4 {[%emt 0:02:15]} a4 {[%emt 0:04:17]} 28. Rab1 {[%emt 0:04:39]} Rab8 {[%emt 0:00:30]} 29. Rfc1 {[%emt 0:03:03]} Rfd8 {[%emt 0:01:43]} 30. Qc2 {[%emt 0:00:34]} ({Better is} 30. c5 $18) 30... Be8 {[%emt 0:00:20]} 31. b5 {[%emt 0:02:58]} Ra8 {[%emt 0:00:27]} 32. Rb4 {[%emt 0:00:07] White is much more active. The black rooks are badly placed.} Kg7 {[%emt 0:00:26]} (32... Qg7 $16 33. Rf1 (33. Rxa4 Rxa4 34. Qxa4 Bg6 $16) 33... h5) 33. Rxa4 {[%emt 0:00:55]} Rxa4 {[%emt 0:00:27]} 34. Qxa4 {[%emt 0:00:02]} Bg6 {[%emt 0:00:07]} 35. Qc2 {[%emt 0:02:59]} Bxe4 {[%emt 0:00:25]} 36. fxe4 {[%emt 0:00:26]} Qe8 {[%emt 0:00:36]} 37. Rf1 {[%emt 0:01:47][%cal Bc1f1,Bf1f5,Bf5f3][%mdl 32]} Ra8 {[%emt 0:00:23]} 38. a4 {[%emt 0:00:57]} ({Much weaker is} 38. Qf2 $6 Qg6 $11) 38... Qg6 {[%emt 0:00:45]} 39. Rf5 {[%emt 0:00:04]} h5 {[%emt 0:00:29]} (39... Qe8 $142 40. Bd2 Qe7) 40. Qd1 $18 {[%emt 0:02:24]} Rh8 {[%emt 0:00:21]} 41. Bf2 {[%emt 0:53:45]} hxg4 {[%emt 0:20:23]} 42. Qxg4 {[%emt 0:00:00]} Qh5 {[%emt 0:00:09]} (42... Qe8 $142 43. c5 dxc5) 43. Qxh5 {[%emt 0:00:00]} Rxh5 {[%emt 0:00:31][%mdl 4096] Endgame KRB-KRB} 44. Rf3 {[%emt 0:00:00]} Rh8 {[%emt 0:05:31]} 45. Ra3 {[%emt 0:00:00] White is clearly winning.} Ra8 {[%emt 0:01:06]} 46. Be1 {[%emt 0:00:00]} Bd8 {[%emt 0:03:16]} 47. a5 {[%emt 0:00:00] [#] And now axb6 would win.} bxa5 {[%emt 0:02:19]} (47... Rc8 $142 48. a6 Kf6) 48. Rxa5 {[%emt 0:00:00]} Rc8 {[%emt 0:00:10]} 49. Kg3 {[%emt 0:00:00]} Kf7 {[%emt 0:01:23]} 50. Kg4 {[%emt 0:00:00]} Ke8 {[%emt 0:01:06]} 51. Ra7 {[%emt 0:00:00]} Kd7 {[%emt 0:00:46]} 52. Ba5 {[%emt 0:00:00] Weighted Error Value: White=0.11 (very precise) /Black=0.27 (precise)} 1-0

[Event "82nd Italian Championship 2023"]
[Site "Brescia"]
[Date "2023.12.04"]
[Round "6.4"]
[White "Carnicelli, Valerio"]
[Black "Brunello, Sabino"]
[Result "0-1"]
[ECO "C55"]
[WhiteElo "2423"]
[BlackElo "2492"]
[Annotator "RC"]
[PlyCount "62"]
[EventDate "2023.11.28"]
[EventType "tourn"]
[EventCountry "ITA"]
[SourceTitle "playchess.com"]
[Source "ChessBase"]
[SourceQuality "1"]
[TimeControl "40/6000+30:20/3000+30:900+30"]

1. e4 {[%emt 0:00:53]} e5 {[%emt 0:00:40]} 2. Nf3 {[%emt 0:00:04]} Nc6 {[%emt 0:00:16]} 3. Bc4 {[%emt 0:00:03]} Nf6 {[%emt 0:00:21]} 4. d3 {[%emt 0:00:04]} Be7 {[%emt 0:00:24]} 5. O-O {[%emt 0:00:15]} O-O {[%emt 0:00:16]} 6. Re1 {[%emt 0:01:21]} d6 {[%emt 0:01:10]} 7. a4 {[%emt 0:00:58]} a5 {[%emt 0:05:13]} 8. h3 {[%emt 0:02:44]} Be6 {[%emt 0:04:32]} 9. Nbd2 {[%emt 0:04:12]} Nd7 {[%emt 0:00:47]} 10. Bxe6 {[%emt 0:06:36]} fxe6 {[%emt 0:00:14]} 11. c3 {[%emt 0:04:26]} Qe8 {[%emt 0:02:46]} 12. Nf1 {[%emt 0:04:19]} Qg6 {[%emt 0:05:34]} 13. Be3 {[%emt 0:05:13]} b6 {[%emt 0:05:14]} 14. Ng3 {[%emt 0:03:47]} Kh8 {[%emt 0:13:49]} 15. Rc1 {[%emt 0:07:05]} d5 {[%emt 0:06:48]} 16. b4 {[%emt 0:08:38]} Bd6 {[%emt 0:21:38]} 17. b5 {[%emt 0:04:58]} Ne7 {[%emt 0:05:17]} 18. Rc2 {[%emt 0:11:54]} h6 {[%emt 0:09:37]} 19. Kh2 {[%emt 0:06:58]} Rad8 {[%emt 0:02:05]} 20. Rce2 {[%emt 0:10:05]} Rxf3 {[%emt 0:06:34]} 21. gxf3 {[%emt 0:00:28]} Qf7 {[%emt 0:00:17]} 22. exd5 {[%emt 0:21:59]} exd5 {[%emt 0:01:28]} 23. c4 {[%emt 0:00:09]} Ng6 {[%emt 0:02:17]} 24. Rc2 {[%emt 0:01:05]} Nh4 {[%emt 0:02:53]} 25. Rh1 {[%emt 0:00:28]} Nxf3+ {[%emt 0:04:35]} 26. Kg2 {[%emt 0:00:02]} Nh4+ {[%emt 0:00:25]} 27. Kg1 {[%emt 0:00:20]} d4 {[%emt 0:00:51]} 28. Qg4 {[%emt 0:01:21]} Nf3+ {[%emt 0:00:55]} 29. Kg2 {[%emt 0:00:01]} Rf8 {[%emt 0:00:10]} 30. Bc1 {[%emt 0:00:28]} Nc5 {[%emt 0:00:13]} 31. Rd1 {[%emt 0:00:31]} Nxd3 {[%emt 0:00:23]} 0-1

[Event "82nd Italian Championship 2023"]
[Site "Brescia"]
[Date "2023.12.04"]
[Round "6.5"]
[White "Iermito, Sebastian"]
[Black "Lodici, Lorenzo"]
[Result "0-1"]
[ECO "B13"]
[WhiteElo "2524"]
[BlackElo "2550"]
[Annotator "TA"]
[PlyCount "84"]
[EventDate "2023.11.28"]
[EventType "tourn"]
[EventCountry "ITA"]
[SourceTitle "playchess.com"]
[Source "ChessBase"]
[SourceQuality "1"]
[TimeControl "40/6000+30:20/3000+30:900+30"]

{[%evp 9,84,2,24,26,38,29,36,35,67,60,68,75,77,77,94,77,62,23,41,0,0,0,0,0,0,0,0,-36,-27,-30,-35,-50,-9,-41,0,0,0,-35,-20,-37,-39,-30,-28,-31,-43,-28,-30,-30,-28,-85,-55,-85,-95,-195,-160,-212,-200,-219,-224,-220,-216,-193,-197,-187,-104,-109,-107,-108,-105,-204,-173,-356,-332,-551,-483,-29979,-484]} 1. e4 {[%emt 0:00:02]} c6 {[%emt 0:02:48]} 2. d4 {[%emt 0:00:20]} d5 {[%emt 0:00:05]} 3. exd5 {[%emt 0:00:03]} cxd5 {[%emt 0:00:04]} 4. Nf3 {[%emt 0:00:02]} Nc6 {[%emt 0:01:40]} 5. Bb5 {[%emt 0:00:08]} Bd7 {[%emt 0:04:11]} 6. c4 {[%emt 0:02:04][%cal Bc2c4,Bc4c5,Bc5b6][%mdl 32] [#] B13: Caro-Kann: Exchange Variation and Panov-Botvinnik Attack.} a6 $146 {[%emt 0:05:46]} ({Predecessor:} 6... e6 7. Nc3 Nf6 8. O-O Be7 9. Ne5 dxc4 10. Nxc6 Bxc6 11. Bxc6+ bxc6 12. Qa4 O-O 13. Qxc4 Nd5 14. Qxc6 {1-0 Naroditsky,D (2619)-Mitrabha,G (2505) Titled Tuesday intern op 01st Aug Early blitz 2023 (4)}) 7. Bxc6 {[%emt 0:06:22]} Bxc6 {[%emt 0:00:47]} 8. c5 {[%emt 0:00:20] White is slightly better.} f6 {[%emt 0:04:18][%cal Oe7e5] Black is weak on the dark squares} 9. O-O {[%emt 0:03:10]} e6 {[%emt 0:01:49]} 10. Nc3 {[%emt 0:02:30]} a5 {[%emt 0:01:43]} 11. Re1 {[%emt 0:05:18]} Kf7 {[%emt 0:05:21]} 12. h4 {[%emt 0:04:38]} b6 {[%emt 0:09:21]} 13. cxb6 {[%emt 0:22:22]} (13. Qd2 $5 {[%cal Rd2f4]}) 13... Bd6 {[%emt 0:10:33]} 14. Na4 {[%emt 0:16:10]} Bxa4 {[%emt 0:14:09]} 15. Qxa4 {[%emt 0:00:02]} Ne7 {[%emt 0:00:07]} 16. Qb5 {[%emt 0:08:49]} Qe8 {[%emt 0:01:51]} 17. Qe2 {[%emt 0:01:55]} Qd7 {[%emt 0:02:09]} 18. Bd2 {[%emt 0:09:40]} (18. Qd3 $5 {[%cal Rc1d2]}) 18... Rhb8 {[%emt 0:07:20]} 19. h5 {[%emt 0:04:21]} Rxb6 {[%emt 0:00:28]} (19... Nf5 {is more complex.} 20. g4 Ne7 21. h6 g5) 20. Bc3 {[%emt 0:00:17]} Bb4 {[%emt 0:06:02]} 21. Qd3 {[%emt 0:03:59]} g6 {[%emt 0:04:41]} 22. Nd2 {[%emt 0:04:00]} a4 {[%emt 0:02:55] Repels Nb3} 23. Qh3 {[%emt 0:03:12]} g5 {[%emt 0:01:36]} 24. Qd3 {[%emt 0:00:57]} (24. Re2 {keeps more tension.} Rc8 25. Rae1 Rcc6 26. Qd3) 24... Kg7 {[%emt 0:00:38]} 25. Re2 {[%emt 0:02:20]} Rc8 {[%emt 0:02:15][%cal Ba8c8,Bc8c6,Bc6c3][%mdl 32]} 26. Rae1 {[%emt 0:00:56]} Rcc6 {[%emt 0:03:09]} 27. Nf1 {[%emt 0:02:15]} Bxc3 {[%emt 0:04:02]} (27... Nf5 {is interesting.} 28. Ne3 Nh6 29. g3 Bf8) 28. bxc3 {[%emt 0:00:01]} Qc8 {[%emt 0:00:15]} 29. Qd1 {[%emt 0:02:23]} (29. Rc1 $11) 29... a3 $17 {[%emt 0:01:42]} 30. Nd2 {[%emt 0:02:36]} Rxc3 {[%emt 0:00:40]} 31. Nb3 {[%emt 0:00:01]} (31. Nb1 $17 {is a better defense.} Rc7 32. Nxa3) 31... Nf5 $19 {[%emt 0:01:07][%cal Be7f5,Bf5d4,Bd4e2][%mdl 32]} 32. Qd2 {[%emt 0:01:18]} (32. g3 $17) 32... Rbc6 {[%emt 0:04:36]} 33. Nc5 {[%emt 0:02:32] [#]} Nxd4 $1 {[%emt 0:00:05][%mdl 576] Remove Defender} 34. Qxc3 {[%emt 0:00:03]} Nxe2+ {[%emt 0:00:05]} (34... Rxc5 $2 35. Qxd4 Rc6 36. Re3 $18) 35. Rxe2 {[%emt 0:00:01][%cal Oe2c2] Strongly threatening Rc2!} Rxc5 {[%emt 0:00:08]} 36. Qxa3 {[%emt 0:00:03][%cal Oe2e6][%mdl 4096] Endgame KQR-KQR} Rc1+ {[%emt 0:01:41]} (36... e5 $19 {aiming for ...d4.} 37. Rb2 Rc7) 37. Kh2 $17 {[%emt 0:00:01] Qe7+ is the strong threat.} Qc7+ {[%emt 0:00:08]} 38. g3 {[%emt 0:00:07]} e5 {[%emt 0:01:09]} 39. Qf3 {[%emt 0:03:26]} (39. Rb2 $17) 39... d4 {[%emt 0:01:47]} 40. h6+ $2 {[%emt 0:01:13]} (40. Kg2) 40... Kg6 $1 $19 {[%emt 0:00:33]} (40... Kxh6 41. Qxf6+ Kh5 42. Re4 Qd7 43. g4+) 41. Re4 $2 {[%emt 0:27:24]} (41. Kg2) 41... Qc3 {[%emt 0:05:15] Active counter play!} (41... Kxh6 $2 {is a self mate.} 42. Qxf6+ Kh5 43. g4+ Kh4 44. Qh6#) 42. Qe2 {[%emt 0:01:21] [#]} (42. Qxc3 $19 Rxc3 43. Kg2) 42... Qc2 {[%emt 0:01:17] Weighted Error Value: White=0.43/Black=0.10 (very precise)} (42... d3 $142 43. Qf3 d2 44. Re3 Qc4 45. g4 d1=Q 46. Qf5+ Kf7 47. Qxh7+ Ke6 48. Qf5+ Ke7 49. Rxe5+ fxe5 50. Qxg5+ Kd7 51. Qg7+ Kc6 52. Qf6+ Qd6 53. Qf3+ e4+ {[%mdl 64] Discovered Attack} 54. Qg3 Qxh6+ 55. Qh3 Rh1+ {[%mdl 64] Skewer, Deflection, Back Rank} 56. Kxh1 Qxh3+ 57. Kg1 Qcf1#) 0-1

[Event "82nd Italian Championship 2023"]
[Site "Brescia"]
[Date "2023.12.04"]
[Round "6.6"]
[White "David, Alberto"]
[Black "Dvirnyy, Danyyil"]
[Result "1/2-1/2"]
[ECO "D35"]
[WhiteElo "2532"]
[BlackElo "2495"]
[Annotator "TA"]
[PlyCount "40"]
[EventDate "2023.11.28"]
[EventType "tourn"]
[EventCountry "ITA"]
[SourceTitle "playchess.com"]
[Source "ChessBase"]
[SourceQuality "1"]
[TimeControl "40/6000+30:20/3000+30:900+30"]

{[%evp 12,27,20,20,35,49,36,22,22,21,34,20,35,31,32,27,20,20]} 1. d4 {[%emt 0:00:09]} Nf6 {[%emt 0:01:55]} 2. c4 {[%emt 0:00:12]} e6 {[%emt 0:03:08]} 3. Nc3 {[%emt 0:00:37]} d5 {[%emt 0:00:10]} 4. cxd5 {[%emt 0:00:37]} exd5 {[%emt 0:00:06]} 5. Bg5 {[%emt 0:00:23][%cal Bc1g5,Bg5h4,Bh4g3][%mdl 32]} Bb4 {[%emt 0:00:30]} 6. e3 {[%emt 0:01:35]} h6 {[%emt 0:00:11]} 7. Bh4 {[%emt 0:00:51]} g5 {[%emt 0:00:08] D35: Queen's Gambit Declined: Exchange Variation.} 8. Bg3 {[%emt 0:00:05]} Ne4 {[%emt 0:00:16]} 9. Qc2 {[%emt 0:05:10]} h5 {[%emt 0:00:33]} 10. f3 {[%emt 0:01:36]} Nxg3 {[%emt 0:03:33]} 11. hxg3 {[%emt 0:00:26]} Qe7 {[%emt 0:09:34]} 12. Kf2 {[%emt 0:09:01]} Be6 {[%emt 0:04:48]} 13. a3 {[%emt 0:09:04]} Bd6 {[%emt 0:09:29]} 14. Nb5 {[%emt 0:24:05] [#]   Weighted Error Value: White=0.03 (flawless) /Black=0.04 (flawless)} {Predecessor:} c6 $146 15. Nxd6+ Qxd6 16. g4 h4 17. Nh3 f6 18. Bd3 a5 19. Bf5 Nd7 20. Bxe6 Qxe6 {0-1 Niemann,H (2687)-Sanal,V (2570) TUR-chT Ankara 2022 (9.6)} 1/2-1/2

[Event "82nd Italian Championship 2023"]
[Site "Brescia"]
[Date "2023.12.05"]
[Round "7.1"]
[White "Dvirnyy, Danyyil"]
[Black "Santagati, Alessandro"]
[Result "1/2-1/2"]
[ECO "D32"]
[WhiteElo "2495"]
[BlackElo "2245"]
[Annotator "RC"]
[PlyCount "142"]
[EventDate "2023.11.28"]
[EventType "tourn"]
[EventCountry "ITA"]
[SourceTitle "playchess.com"]
[Source "ChessBase"]
[SourceQuality "1"]
[TimeControl "40/6000+30:20/3000+30:900+30"]

1. c4 {[%emt 0:03:03]} e6 {[%emt 0:08:04]} 2. Nc3 {[%emt 0:01:24]} d5 {[%emt 0:00:13]} 3. e3 {[%emt 0:00:12]} Nf6 {[%emt 0:00:28]} 4. Nf3 {[%emt 0:00:08]} c5 {[%emt 0:01:44]} 5. cxd5 {[%emt 0:00:15]} exd5 {[%emt 0:00:07]} 6. d4 {[%emt 0:03:07]} Nc6 {[%emt 0:00:07]} 7. Bb5 {[%emt 0:00:33]} Bd6 {[%emt 0:01:14]} 8. O-O {[%emt 0:00:46]} O-O {[%emt 0:00:12]} 9. dxc5 {[%emt 0:02:26]} Bxc5 {[%emt 0:00:09]} 10. b3 {[%emt 0:02:41]} Bg4 {[%emt 0:06:54]} 11. Bb2 {[%emt 0:02:32]} a6 {[%emt 0:02:06]} 12. Be2 {[%emt 0:03:53]} Qd6 {[%emt 0:08:01]} 13. h3 {[%emt 0:05:48]} Be6 {[%emt 0:05:51]} 14. Ng5 {[%emt 0:07:30]} Rad8 {[%emt 0:03:52]} 15. Rc1 {[%emt 0:08:02]} Ba7 {[%emt 0:03:20]} 16. Qc2 {[%emt 0:13:56]} Bb8 {[%emt 0:14:44]} 17. g3 {[%emt 0:02:01]} h6 {[%emt 0:07:07]} 18. Nxe6 {[%emt 0:05:56]} fxe6 {[%emt 0:00:28]} 19. Rcd1 {[%emt 0:05:22]} Nh7 {[%emt 0:06:00]} 20. Kh1 {[%emt 0:07:02]} Qc5 {[%emt 0:07:29]} 21. Qg6 {[%emt 0:02:37]} Nf6 {[%emt 0:05:48]} 22. Na4 {[%emt 0:08:55]} Qd6 {[%emt 0:01:37]} 23. Nc3 {[%emt 0:04:53]} Ne7 {[%emt 0:03:37]} 24. Qc2 {[%emt 0:00:09]} Qc5 {[%emt 0:05:45]} 25. Bd3 {[%emt 0:00:15]} Rc8 {[%emt 0:01:35]} 26. Qd2 {[%emt 0:00:37]} Qc6 {[%emt 0:05:20]} 27. Ne2 {[%emt 0:01:11]} d4+ {[%emt 0:01:37]} 28. Kg1 {[%emt 0:00:14]} dxe3 {[%emt 0:00:33]} 29. Qxe3 {[%emt 0:00:13]} Nf5 {[%emt 0:01:34]} 30. Bxf5 {[%emt 0:05:07]} exf5 {[%emt 0:00:10]} 31. Nd4 {[%emt 0:03:00]} Qe4 {[%emt 0:00:40]} 32. Qxe4 {[%emt 0:02:39]} Nxe4 {[%emt 0:01:32]} 33. Ne6 {[%emt 0:01:02]} Rf7 {[%emt 0:00:56]} 34. Nxg7 {[%emt 0:00:23]} Rxg7 {[%emt 0:00:56]} 35. Bxg7 {[%emt 0:00:07]} Kxg7 {[%emt 0:00:29]} 36. Rd7+ {[%emt 0:00:07]} Kf6 {[%emt 0:04:20]} 37. Rxb7 {[%emt 0:00:21]} Bd6 {[%emt 0:01:40]} 38. Rb6 {[%emt 0:00:10]} Rc2 {[%emt 0:00:40]} 39. Rxa6 {[%emt 0:03:58]} Ke7 {[%emt 0:01:27]} 40. Ra7+ {[%emt 0:03:10]} Ke6 {[%emt 0:00:17]} 41. Ra6 {[%emt 0:54:40]} Ke5 {[%emt 0:09:22]} 42. Ra5+ {[%emt 0:00:00]} Ke6 {[%emt 0:01:24]} 43. g4 {[%emt 0:00:00]} Bc5 {[%emt 0:05:31]} 44. gxf5+ {[%emt 0:00:00]} Kf6 {[%emt 0:00:21]} 45. Kg2 {[%emt 0:00:00]} h5 {[%emt 0:06:02]} 46. h4 {[%emt 0:00:00]} Bxf2 {[%emt 0:06:55]} 47. Ra6+ {[%emt 0:00:00]} Bb6+ {[%emt 0:00:13]} 48. Kf3 {[%emt 0:00:00]} Nd2+ {[%emt 0:00:45]} 49. Kf4 {[%emt 0:00:00]} Nxf1 {[%emt 0:06:25]} 50. Rxb6+ {[%emt 0:00:00]} Kf7 {[%emt 0:02:39]} 51. a4 {[%emt 0:00:00]} Rf2+ {[%emt 0:02:51]} 52. Kg5 {[%emt 0:00:00]} Rg2+ {[%emt 0:02:01]} 53. Kxh5 {[%emt 0:00:00]} Rg8 {[%emt 0:00:30]} 54. Rg6 {[%emt 0:00:00]} Rb8 {[%emt 0:02:25]} 55. Kg5 {[%emt 0:00:00]} Nd2 {[%emt 0:03:42]} 56. h5 {[%emt 0:00:00]} Rxb3 {[%emt 0:02:16]} 57. Rf6+ {[%emt 0:00:00]} Ke7 {[%emt 0:00:53]} 58. Re6+ {[%emt 0:00:00]} Kf7 {[%emt 0:00:13]} 59. h6 {[%emt 0:00:00]} Rb4 {[%emt 0:03:24]} 60. Rf6+ {[%emt 0:00:00]} Ke7 {[%emt 0:00:09]} 61. Kg6 {[%emt 0:00:00]} Rg4+ {[%emt 0:18:00]} 62. Kh5 {[%emt 0:00:00]} Rxa4 {[%emt 0:00:00]} 63. h7 {[%emt 0:00:00]} Nf3 {[%emt 0:00:00]} 64. Re6+ {[%emt 0:00:00]} Kf7 {[%emt 0:00:00]} 65. h8=N+ {[%emt 0:00:00]} Kg7 {[%emt 0:00:00]} 66. Ng6 {[%emt 0:00:00]} Nd4 {[%emt 0:00:53]} 67. Re7+ {[%emt 0:00:00]} Kf6 {[%emt 0:00:45]} 68. Re4 {[%emt 0:00:00]} Kxf5 {[%emt 0:01:15]} 69. Rf4+ {[%emt 0:00:00]} Ke6 {[%emt 0:00:15]} 70. Kg4 {[%emt 0:00:00]} Rb4 {[%emt 0:00:55]} 71. Nh4 {[%emt 0:00:00]} Nc6 {[%emt 0:00:23]} 1/2-1/2

[Event "82nd Italian Championship 2023"]
[Site "Brescia"]
[Date "2023.12.05"]
[Round "7.2"]
[White "Lodici, Lorenzo"]
[Black "David, Alberto"]
[Result "1/2-1/2"]
[ECO "D00"]
[WhiteElo "2550"]
[BlackElo "2532"]
[Annotator "TA"]
[PlyCount "58"]
[EventDate "2023.11.28"]
[EventType "tourn"]
[EventCountry "ITA"]
[SourceTitle "playchess.com"]
[Source "ChessBase"]
[SourceQuality "1"]
[TimeControl "40/6000+30:20/3000+30:900+30"]

{[%evp 9,58,6,1,0,0,0,0,-10,0,-4,0,0,1,0,16,23,23,-6,0,-7,-4,-2,0,0,0,0,0,-14,0,0,0,0,0,0,-4,-25,0,-38,-2,-12,0,0,0,0,0,0,0,0,0,0,0]} 1. d4 {[%emt 0:12:16]} d5 {[%emt 0:00:34]} 2. Nc3 {[%emt 0:03:35]} c6 {[%emt 0:05:28]} 3. Bf4 {[%emt 0:00:16]} Bf5 {[%emt 0:02:01]} 4. e3 {[%emt 0:00:06]} e6 {[%emt 0:05:26]} 5. Bd3 {[%emt 0:01:16]} Bd6 {[%emt 0:05:32] [#]} 6. Qf3 $146 {[%emt 0:07:37] D00: 1 d4 d5: Unusual lines.} ({Predecessor:} 6. Nge2 Nf6 7. Bxf5 exf5 8. Bg5 h6 9. Bxf6 Qxf6 10. Nf4 O-O 11. O-O Nd7 12. g3 {0-1 Cvirik,V (1938)-Chovanec,M (2197) Tatry op Tatranske Zruby 2007 (2)}) 6... Bxd3 {[%emt 0:06:09]} 7. cxd3 {[%emt 0:02:25]} Ne7 {[%emt 0:03:18]} 8. h4 {[%emt 0:07:56][%cal Bh2h4,Bh4h5,Bh5h6][%mdl 32]} Bxf4 {[%emt 0:19:19]} 9. Qxf4 {[%emt 0:00:23]} Nd7 {[%emt 0:00:06]} 10. Nf3 {[%emt 0:03:29]} O-O {[%emt 0:23:38]} 11. h5 {[%emt 0:07:22]} Qb8 {[%emt 0:00:49]} 12. Qxb8 {[%emt 0:09:58]} Rfxb8 {[%emt 0:03:14]} 13. h6 {[%emt 0:00:05]} g6 $1 {[%emt 0:00:36]} 14. g4 {[%emt 0:01:09]} f6 {[%emt 0:07:15]} 15. g5 {[%emt 0:00:04]} fxg5 {[%emt 0:00:05]} 16. Nxg5 {[%emt 0:00:03]} e5 {[%emt 0:00:05]} 17. dxe5 {[%emt 0:18:29]} Nxe5 {[%emt 0:00:06]} 18. Ke2 {[%emt 0:03:41]} (18. Kd2 $5) 18... Re8 {[%emt 0:06:04]} (18... Rf8 {feels hotter.} 19. f4 Nf5 20. Rag1 Nf7) 19. f4 {[%emt 0:09:44]} Nf7 {[%emt 0:00:58]} 20. Nxf7 {[%emt 0:00:11]} Kxf7 {[%emt 0:00:04]} 21. e4 {[%emt 0:00:15]} Rad8 {[%emt 0:04:36]} 22. Rad1 {[%emt 0:02:54]} Nf5 {[%emt 0:03:16] [#] Strongly threatening ...Ng3+.} 23. Rh3 {[%emt 0:02:58] Against Ng3+} b5 {[%emt 0:02:24] aiming for ...b4.} 24. Kf3 {[%emt 0:06:24] The position is equal.} dxe4+ {[%emt 0:04:31]} 25. dxe4 {[%emt 0:00:05]} Rxd1 {[%emt 0:00:07]} 26. Nxd1 {[%emt 0:00:02]} Nd4+ {[%emt 0:00:06]} 27. Ke3 {[%emt 0:00:05]} Nf5+ {[%emt 0:00:08]} 28. Kf3 {[%emt 0:00:29]} Nd4+ {[%emt 0:00:46]} 29. Ke3 {[%emt 0:00:03]} Nf5+ {[%emt 0:00:03] Not much happened in this game.   Weighted Error Value: White=0.06 (flawless) /Black=0.06 (flawless)} 1/2-1/2